bitfinex-derivatives/quotes_ETHF0:USTF0_20250320
["timestamp","ask_amount","ask_price","bid_price","bid_amount"]
[1742496245729,1.3596,1971.8,1971.7,3.77994829]
[1742496245935,1.3596,1971.8,1971.7,3.08594]
[1742496246136,2.37448,1971.8,1971.7,2.76499664]
[1742496246533,2.37448,1971.8,1971.7,2.071]
[1742496247832,2.37448,1971.8,1971.7,0.6862]
[1742496248036,1.01494,1971.7,1971.6,1.40880186]
[1742496248241,2.35094,1971.7,1971.6,2.07480186]
[1742496248452,2.35094,1971.7,1971.6,0.67360186]
[1742496248931,2.35094,1971.7,1971.6,2.76770154]
[1742496249132,2.35094,1971.7,1971.6,2.07480186]
[1742496250037,2.35094,1971.7,1971.6,0.00760186]
[1742496251535,2.35094,1971.7,1971.6,1.30820186]
[1742496251739,2.35094,1971.7,1971.6,2.32319186]
[1742496252436,2.35094,1971.7,1971.6,1.30820186]
[1742496252642,2.35094,1971.7,1971.6,2.32319186]
[1742496252943,1.336,1971.7,1971.6,2.32319186]
[1742496254036,4.34647186,1971.9,1971.8,1.01488]
[1742496254238,1.02247186,1971.9,1971.8,1.01488]
[1742496254735,0.00760186,1971.9,1971.8,1.72208]
[1742496255339,1.30760186,1971.9,1971.8,3.01548]
[1742496256741,0.00760186,1971.9,1971.8,3.01548]
[1742496257247,1.01467,1972.3,1972.2,1.01464]
[1742496257440,2.41207,1972.3,1972.2,1.01464]
[1742496258452,2.41207,1972.3,1972.2,3.08934]
[1742496258843,1.3974,1972.3,1972.2,3.08934]
[1742496259147,1.3974,1972.3,1972.2,6.29714]
[1742496259148,2.41203,1972.3,1972.2,6.29714]
[1742496260849,1.3974,1972.3,1972.2,6.29714]
[1742496261948,1.3974,1972.3,1972.2,6.98897988]
[1742496263251,0.00760186,1972.4,1972.3,1.01463]
[1742496263549,0.00760186,1972.4,1972.3,2.39833]
[1742496263751,1.31190186,1972.4,1972.3,2.39833]
[1742496264251,1.31190186,1972.4,1972.3,3.09080809]
[1742496265042,1.01448,1972.7,1972.4,2.53644]
[1742496265242,2.31878,1972.7,1972.6,1.01444]
[1742496265647,2.31878,1972.7,1972.6,2.36044]
[1742496266050,1.01447,1972.6,1972.5,3.2078]
[1742496266249,1.01458,1972.4,1972.3,4.2224]
[1742496266445,1.01458,1972.4,1972.3,4.91559983]
[1742496266651,1.01458,1972.4,1972.3,4.91560174]
[1742496266852,1.01458,1972.4,1972.3,4.2224]
[1742496267149,1.01458,1972.4,1972.3,4.91575672]
[1742496267653,1.01458,1972.4,1972.3,4.2224]
[1742496267853,1.01458,1972.4,1972.3,3.2078]
[1742496268049,1.01458,1972.4,1972.3,4.22243]
[1742496268649,1.01458,1972.4,1972.3,3.2078]
[1742496268854,1.01458,1972.4,1972.3,4.22243]
[1742496269453,1.01458,1972.4,1972.3,3.2078]
[1742496270254,1.01468,1972.2,1972.1,3.2078]
[1742496270658,1.01468,1972.2,1972.1,3.9020219]
[1742496270861,2.33528,1972.2,1972.1,3.2078]
[1742496271362,2.33528,1972.2,1972.1,4.22253]
[1742496271547,2.33528,1972.2,1972.1,4.91674698]
[1742496272562,2.33528,1972.2,1972.1,5.61094698]
[1742496273065,2.33528,1972.2,1972.1,6.29274698]
[1742496273561,1.3206,1972.2,1972.1,6.29274698]
[1742496274362,1.3206,1972.2,1972.1,7.64894698]
[1742496275861,2.33528,1972.2,1972.1,7.64894698]
[1742496276962,1.3206,1972.2,1972.1,7.64894698]
[1742496277557,1.3206,1972.2,1972.1,7.6492712]
[1742496279365,1.3206,1972.2,1972.1,7.64951043]
[1742496279565,1.3206,1972.2,1972.1,7.64954315]
[1742496285775,1.01461,1972.4,1972.3,1.01463]
[1742496285971,1.69328,1972.5,1972.4,1.01458]
[1742496286176,1.69328,1972.5,1972.4,2.40509315]
[1742496286377,1.69328,1972.5,1972.4,1.70939315]
[1742496287275,3.01158,1972.5,1972.4,1.70939315]
[1742496289276,3.01158,1972.5,1972.4,3.11449315]
[1742496289580,1.997,1972.5,1972.4,3.11449315]
[1742496290075,1.997,1972.5,1972.4,3.79629315]
[1742496291481,3.01152,1972.5,1972.4,3.79629315]
[1742496291686,1.997,1972.5,1972.4,3.79629315]
[1742496292181,1.3183,1972.5,1972.4,3.79629315]
[1742496293383,0.6944,1972.7,1972.6,1.01447]
[1742496293585,0.6944,1972.7,1972.6,4.91708315]
[1742496293981,0.00760186,1972.8,1972.7,1.01442]
[1742496294181,0.00760186,1972.8,1972.7,2.99093315]
[1742496294383,1.02197186,1972.8,1972.7,2.99093315]
[1742496295386,1.02197186,1972.8,1972.7,2.29612]
[1742496295585,1.02197186,1972.8,1972.7,2.99194653]
[1742496296484,1.02197186,1972.8,1972.7,0.69582653]
[1742496296688,1.01447,1972.7,1972.6,1.01446]
[1742496296889,1.01447,1972.7,1972.6,1.71043289]
[1742496297092,2.36467,1972.7,1972.6,1.71043289]
[1742496297485,2.36467,1972.7,1972.6,0.69598533]
[1742496298690,1.01458,1972.4,1972.3,1.0146]
[1742496298892,1.01458,1972.4,1972.3,3.08613249]
[1742496299491,1.01458,1972.4,1972.3,3.08623452]
[1742496301086,1.01458,1972.4,1972.3,3.0865369]
[1742496301586,1.01458,1972.4,1972.3,2.0719369]
[1742496302095,1.01458,1972.4,1972.3,3.0865669]
[1742496302695,1.01458,1972.4,1972.3,0.6965369]
[1742496302892,1.01468,1972.2,1972.1,1.01473]
[1742496303095,1.01468,1972.2,1972.1,1.71134591]
[1742496303884,1.01468,1972.2,1972.1,0.69661591]
[1742496304193,2.40968,1972.2,1972.1,0.69661591]
[1742496304587,5.73168,1972.2,1972.1,0.69661591]
[1742496304788,1.01483,1971.9,1971.8,4.5908]
[1742496304995,1.01483,1971.9,1971.8,5.60568]
[1742496305386,2.7421,1972.0,1971.9,1.01483]
[1742496305599,1.3995,1972.0,1971.9,2.41303]
[1742496305897,1.66551,1972.2,1972.1,1.01473]
[1742496306287,3.10596,1972.3,1972.2,1.01468]
[1742496306892,3.10596,1972.3,1972.2,1.65508]
[1742496307287,1.3995,1972.3,1972.2,1.65508]
[1742496307493,0.6918,1972.5,1972.4,1.01458]
[1742496307694,2.0503,1972.7,1972.4,3.2078]
[1742496307896,1.3995,1972.6,1972.5,3.05312]
[1742496308197,1.3995,1972.6,1972.5,3.71422]
[1742496308400,2.41397,1972.6,1972.5,3.71422]
[1742496308601,1.3995,1972.6,1972.5,3.71422]
[1742496308798,1.71377186,1972.8,1972.7,1.01442]
[1742496308995,0.00760186,1972.8,1972.7,1.01442]
[1742496309199,0.00760186,1972.8,1972.7,2.32462]
[1742496309387,1.29390186,1972.8,1972.7,2.32462]
[1742496310098,2.30827186,1972.8,1972.7,2.32462]
[1742496310293,1.29390186,1972.8,1972.7,2.32462]
[1742496310997,2.30827186,1972.8,1972.7,2.32462]
[1742496313397,1.29390186,1972.8,1972.7,2.32462]
[1742496314597,2.30827186,1972.8,1972.7,2.32462]
[1742496316797,2.30827186,1972.8,1972.7,3.01465486]
[1742496317096,1.29390186,1972.8,1972.7,3.01470904]
[1742496317492,1.29390186,1972.8,1972.7,2.32462]
[1742496317893,1.29390186,1972.8,1972.7,3.01468673]
[1742496318090,2.30827186,1972.8,1972.7,3.01468673]
[1742496318295,2.30827186,1972.8,1972.7,2.32462]
[1742496318698,1.29390186,1972.8,1972.7,3.01460513]
[1742496318903,0.00760186,1972.8,1972.7,3.01460513]
[1742496319099,0.00760186,1972.8,1972.7,2.32462]
[1742496319599,0.00760186,1972.8,1972.7,3.01446184]
[1742496320795,0.00760186,1972.8,1972.7,3.01431452]
[1742496322409,1.02197186,1972.8,1972.7,3.01431452]
[1742496322607,1.69407186,1972.8,1972.7,3.01431452]
[1742496322808,2.99627186,1972.8,1972.7,3.01404585]
[1742496324311,2.32417186,1972.8,1972.7,3.01404585]
[1742496324813,1.30980186,1972.8,1972.7,3.01404585]
[1742496326212,0.00760186,1972.8,1972.7,3.01404585]
[1742496326712,0.00760186,1972.8,1972.7,3.01349307]
[1742496327408,1.3338,1973.0,1972.9,1.01432]
[1742496327604,1.3338,1973.0,1972.9,4.91099307]
[1742496328000,1.3338,1973.0,1972.9,6.28379307]
[1742496328401,2.34807,1973.0,1972.9,6.28379307]
[1742496328611,3.05467,1973.0,1972.9,6.28379307]
[1742496328813,2.0404,1973.0,1972.9,6.28349663]
[1742496329015,1.3338,1973.0,1972.9,6.28349663]
[1742496330707,1.3338,1973.0,1972.9,6.28340826]
[1742496330708,2.34807,1973.0,1972.9,6.28340826]
[1742496331110,1.3338,1973.0,1972.9,6.28340826]
[1742496331817,0.00760186,1973.1,1973.0,1.01427]
[1742496332015,1.29380186,1973.1,1973.0,3.00265826]
[1742496332710,1.29380186,1973.1,1973.0,3.0026629]
[1742496336324,2.30802186,1973.1,1973.0,3.0026629]
[1742496336512,1.29380186,1973.1,1973.0,3.0026629]
[1742496336717,1.29380186,1973.1,1973.0,3.00438284]
[1742496337118,2.30802186,1973.1,1973.0,3.00438284]
[1742496337426,2.30802186,1973.1,1973.0,0.69021284]
[1742496338625,1.01432,1972.9,1972.8,1.02193186]
[1742496338821,1.01432,1972.9,1972.8,0.69885928]
[1742496339022,1.01432,1972.9,1972.8,1.71322928]
[1742496339223,2.36732,1972.9,1972.8,1.71322928]
[1742496340113,2.36732,1972.9,1972.8,3.00962928]
[1742496340523,2.36732,1972.9,1972.8,2.31837186]
[1742496340725,2.36732,1972.9,1972.8,3.0096752]
[1742496341026,2.36732,1972.9,1972.8,1.7132752]
[1742496342220,2.36732,1972.9,1972.8,3.0403752]
[1742496342730,2.36732,1972.9,1972.8,3.04048321]
[1742496344726,1.353,1972.9,1972.8,3.04048321]
[1742496344921,2.36732,1972.9,1972.8,3.68748321]
[1742496346227,2.36732,1972.9,1972.8,3.04048321]
[1742496346423,2.36732,1972.9,1972.8,2.34907186]
[1742496346623,2.36732,1972.9,1972.8,3.04057935]
[1742496347019,2.36732,1972.9,1972.8,2.02620935]
[1742496347222,2.36732,1972.9,1972.8,0.69910935]
[1742496347428,3.75392,1972.9,1972.8,0.69910935]
[1742496348530,3.75392,1972.9,1972.8,0.6989682]
[1742496348729,3.75392,1972.9,1972.8,3.0238382]
[1742496349223,1.3866,1972.9,1972.8,3.0238382]
[1742496349429,1.3866,1972.9,1972.8,6.34384792]
[1742496349622,1.34450186,1973.1,1973.0,1.01427]
[1742496349816,1.29370186,1973.1,1973.0,4.91344606]
[1742496350223,1.29370186,1973.1,1973.0,6.89964606]
[1742496350423,0.00760186,1973.1,1973.0,6.89964606]
[1742496350631,0.00760186,1973.1,1973.0,10.21964606]
[1742496351033,0.00760186,1973.1,1973.0,10.5955345]
[1742496351236,1.01404,1973.5,1973.0,9.5812645]
[1742496351423,1.3593,1973.5,1973.4,1.01401]
[1742496351628,1.3593,1973.5,1973.4,1.70538606]
[1742496351825,1.3593,1973.5,1973.4,3.09158606]
[1742496352336,2.37331,1973.5,1973.4,3.09158606]
[1742496353131,1.3593,1973.5,1973.4,3.09158606]
[1742496353331,9.2618292,1973.8,1973.4,3.09158606]
[1742496353332,7.0679192,1973.8,1973.7,1.01391]
[1742496353528,7.0679192,1973.8,1973.7,1.70398512]
[1742496353529,2.37319,1973.8,1973.7,1.70398512]
[1742496353929,2.37319,1973.8,1973.7,2.00847512]
[1742496354130,2.37319,1973.8,1973.7,3.02238512]
[1742496354431,2.37319,1973.8,1973.7,2.00847512]
[1742496354633,2.37319,1973.8,1973.7,0.69007512]
[1742496354830,2.37319,1973.8,1973.2,2.53541]
[1742496354831,1.01411,1973.3,1973.2,8.19803]
[1742496355028,1.01411,1973.3,1973.2,10.20622312]
[1742496355336,1.01411,1973.3,1973.2,6.88722312]
[1742496356537,2.35941,1973.3,1973.2,6.88722312]
[1742496357832,1.3453,1973.3,1973.2,6.88722312]
[1742496358040,2.35941,1973.3,1973.2,6.88722312]
[1742496358539,1.0141,1973.4,1973.3,1.01407]
[1742496358741,2.3284,1973.4,1973.3,3.10926312]
[1742496359241,2.31907,1973.6,1973.5,1.01401]
[1742496359435,3.63337,1973.6,1973.5,1.01401]
[1742496359842,3.63337,1973.6,1973.5,2.34071]
[1742496360441,3.63337,1973.6,1973.2,7.1839]
[1742496360442,1.01411,1973.4,1973.2,7.1839]
[1742496360642,1.01411,1973.4,1973.3,3.03016744]
[1742496360837,1.01411,1973.4,1973.3,2.01607744]
[1742496361336,1.01411,1973.4,1973.3,3.03020124]
[1742496361544,1.01411,1973.4,1973.3,3.03020885]
[1742496361737,1.01411,1973.4,1973.3,2.01609885]
[1742496361944,1.01411,1973.3,1973.2,2.34085]
[1742496362136,1.01411,1973.3,1973.2,3.03022778]
[1742496362337,1.01411,1973.3,1973.2,6.23802778]
[1742496362836,1.0141,1973.4,1973.3,1.01407]
[1742496363033,1.0141,1973.4,1973.3,3.67554778]
[1742496363445,1.0141,1973.4,1973.3,2.98617]
[1742496363646,1.0141,1973.4,1973.3,3.67550856]
[1742496365140,1.67272,1973.6,1973.5,1.01401]
[1742496365445,1.01402,1973.6,1973.5,1.70276721]
[1742496365636,1.01391,1973.8,1973.7,1.01387]
[1742496365844,1.01391,1973.8,1973.7,4.9102411]
[1742496366242,1.01391,1973.8,1973.7,6.2635411]
[1742496366844,0.6389,1973.9,1973.8,1.01386]
[1742496366845,1.01385,1973.9,1973.8,1.01386]
[1742496367142,1.01385,1973.9,1973.8,2.36716]
[1742496367748,0.691,1974.1,1973.8,1.3533]
[1742496368042,1.0138,1974.0,1973.9,3.03145]
[1742496368238,1.0138,1974.0,1973.8,1.01383]
[1742496368443,1.0138,1974.0,1973.7,6.5258]
[1742496368444,1.01386,1973.8,1973.7,6.5258]
[1742496368640,1.01386,1973.8,1973.7,3.21540186]
[1742496369146,4.33186,1973.8,1973.7,0.00760186]
[1742496369648,4.33186,1973.8,1973.7,1.02151186]
[1742496369948,1.01385,1973.9,1973.8,1.01381]
[1742496370147,1.01378,1974.0,1973.9,1.01375]
[1742496370346,1.01378,1974.0,1973.9,2.40075]
[1742496370850,1.01378,1974.0,1973.9,1.387]
[1742496371051,4.009,1974.1,1973.7,1.02149186]
[1742496371052,9.75116,1974.1,1973.7,1.02149186]
[1742496371252,1.01386,1973.8,1973.7,2.40849186]
[1742496372148,1.01385,1973.9,1973.8,1.01381]
[1742496372340,1.01385,1973.9,1973.8,2.39721]
[1742496372546,1.01385,1973.9,1973.8,1.3834]
[1742496373448,1.01386,1973.8,1973.7,1.02151186]
[1742496373651,1.01386,1973.8,1973.7,2.40491186]
[1742496376148,1.01386,1973.8,1973.7,3.09355968]
[1742496376348,1.01386,1973.8,1973.7,2.07964968]
[1742496376548,1.01386,1973.8,1973.7,1.39100186]
[1742496376549,1.66606,1973.8,1973.7,1.39100186]
[1742496376749,1.66606,1973.8,1973.7,2.40491186]
[1742496377654,1.66606,1973.8,1973.7,3.09408321]
[1742496379049,1.3856,1973.9,1973.7,3.09408321]
[1742496379245,3.06181,1973.9,1973.8,2.36496]
[1742496379553,2.39941,1973.9,1973.8,3.05460601]
[1742496379758,2.39941,1973.9,1973.8,3.054625]
[1742496380345,1.3856,1973.9,1973.8,3.05466612]
[1742496380554,1.3856,1973.9,1973.8,6.26246612]
[1742496381457,1.01379,1974.0,1973.9,1.01381]
[1742496381656,1.01374,1974.1,1974.0,1.01369]
[1742496381851,1.01374,1974.1,1974.0,2.34689612]
[1742496382150,1.01374,1974.1,1974.0,2.00740612]
[1742496382556,1.01381,1973.9,1973.8,1.65735]
[1742496382758,1.01381,1973.9,1973.8,3.66447608]
[1742496383054,1.01381,1973.9,1973.8,0.68942608]
[1742496383351,1.01386,1973.8,1973.7,1.32530186]
[1742496383557,1.01386,1973.8,1973.7,2.01480987]
[1742496384256,2.38626,1973.8,1973.7,3.02871987]
[1742496385258,2.38626,1973.8,1973.7,3.02862685]
[1742496385959,2.38626,1973.8,1973.7,2.01471685]
[1742496386155,2.38626,1973.8,1973.7,3.02862685]
[1742496386957,2.38626,1973.8,1973.7,2.01471685]
[1742496387957,2.38626,1973.8,1973.7,0.69701685]
[1742496388660,2.38626,1973.8,1973.7,0.00760186]
[1742496388864,1.01401,1973.5,1973.4,4.4985]
[1742496389165,1.01401,1973.5,1973.4,5.18846583]
[1742496389655,1.01401,1973.5,1973.4,6.20252583]
[1742496389852,0.00760186,1973.6,1973.4,6.20252583]
[1742496390056,0.00760186,1973.6,1973.5,4.29967583]
[1742496391260,0.00760186,1973.6,1973.5,4.29948312]
[1742496392158,0.00760186,1973.6,1973.5,12.71848312]
[1742496392360,1.01373,1974.1,1973.9,1.01381]
[1742496392562,1.01373,1974.1,1974.0,4.40117312]
[1742496392864,2.29343,1974.1,1974.0,4.40117312]
[1742496393064,2.29343,1974.1,1974.0,4.40112957]
[1742496395564,2.29343,1974.1,1974.0,7.60892957]
[1742496395762,1.01369,1974.2,1974.1,1.0137]
[1742496395964,2.35309,1974.2,1974.1,3.10292957]
[1742496396961,2.35309,1974.2,1974.1,2.4132]
[1742496397165,2.35309,1974.2,1974.1,3.10374348]
[1742496397666,1.3394,1974.2,1974.1,3.10374348]
[1742496398556,2.35305,1974.2,1974.1,3.10374348]
[1742496398752,1.3394,1974.2,1974.1,3.10374348]
[1742496398959,2.35305,1974.2,1974.1,3.10374348]
[1742496399163,1.3803,1974.4,1974.1,3.10374348]
[1742496399361,1.2981,1974.3,1974.2,3.04759348]
[1742496399563,2.3117,1974.3,1974.2,2.03394348]
[1742496400668,2.3117,1974.3,1974.2,2.03380859]
[1742496401261,2.3117,1974.3,1974.2,0.69040859]
[1742496401458,5.6277,1974.3,1974.2,0.69040859]
[1742496401664,1.01375,1974.0,1973.9,1.3434]
[1742496401967,1.01375,1974.0,1973.9,3.04758908]
[1742496403071,2.41705,1974.0,1973.9,3.04709265]
[1742496403366,2.41705,1974.0,1973.9,2.03328265]
[1742496403579,3.09895,1974.0,1973.9,0.68988265]
[1742496403871,3.09895,1974.0,1973.9,1.70369265]
[1742496404274,3.09895,1974.0,1973.9,1.7033699]
[1742496404475,2.41705,1974.0,1973.9,1.7033699]
[1742496404973,2.41705,1974.0,1973.9,1.70332916]
[1742496405176,2.41705,1974.0,1973.9,2.99102916]
[1742496405674,2.41705,1974.0,1973.9,1.97721916]
[1742496406375,2.41705,1974.0,1973.9,0.68951916]
[1742496406676,1.01381,1973.9,1973.8,5.55434]
[1742496406870,2.34531,1973.9,1973.8,6.24403907]
[1742496407067,2.34531,1973.9,1973.8,6.24402951]
[1742496409576,2.34531,1973.9,1973.8,5.23018951]
[1742496409878,2.34531,1973.9,1973.8,6.24404951]
[1742496410778,1.3315,1973.9,1973.8,6.24404951]
[1742496410979,2.34531,1973.9,1973.8,6.24421257]
[1742496411574,1.01401,1973.5,1973.4,3.2078]
[1742496411772,1.01401,1973.5,1973.4,3.89779456]
[1742496411979,1.01401,1973.5,1973.4,4.91185456]
[1742496412773,1.01401,1973.5,1973.4,0.68999456]
[1742496413271,1.01406,1973.4,1973.3,0.00760186]
[1742496413472,3.76436,1973.4,1973.3,0.00760186]
[1742496420273,1.01406,1973.5,1973.4,1.01403]
[1742496420483,1.3772,1973.6,1973.5,1.01401]
[1742496420678,2.39116,1973.6,1973.5,2.36791]
[1742496421382,2.39116,1973.6,1973.5,1.3539]
[1742496422685,2.39116,1973.6,1973.5,2.36791]
[1742496422884,1.3772,1973.6,1973.3,3.21540186]
[1742496423189,1.01406,1973.4,1973.3,0.00760186]
[1742496423591,1.01427,1973.0,1972.9,1.2863]
[1742496423891,1.01427,1973.0,1972.9,1.3535]
[1742496424391,1.01447,1972.6,1972.5,5.06749]
[1742496424593,1.01447,1972.6,1972.5,5.75546527]
[1742496425189,1.01447,1972.6,1972.5,5.06749]
[1742496425594,1.02207186,1972.7,1972.6,1.01447]
[1742496425890,0.00760186,1972.7,1972.6,1.01447]
[1742496426087,0.00760186,1972.7,1972.6,2.36797]
[1742496426482,0.00760186,1972.7,1972.6,3.05507651]
[1742496426684,0.6646,1973.2,1972.8,2.53585]
[1742496426987,1.01412,1973.4,1973.3,1.01407]
[1742496427193,1.01405,1973.5,1973.4,1.01401]
[1742496427597,2.32505,1973.5,1973.4,1.01401]
[1742496427793,2.32505,1973.5,1973.4,2.32581]
[1742496429889,2.32505,1973.5,1973.4,1.3118]
[1742496430090,1.01406,1973.4,1973.3,0.6499]
[1742496430291,1.01422,1973.1,1973.0,1.3844]
[1742496430491,1.01422,1973.1,1973.0,2.7557]
[1742496430985,2.32432,1973.1,1973.0,2.7557]
[1742496432284,1.01447,1972.7,1972.6,3.2078]
[1742496432483,1.01442,1972.8,1972.6,3.8953534]
[1742496432697,1.01442,1972.8,1972.7,1.01438]
[1742496432894,1.01442,1972.8,1972.7,1.70189523]
[1742496433487,1.01437,1972.9,1972.8,1.01437]
[1742496433797,1.01437,1972.9,1972.8,1.71417]
[1742496436191,2.37954,1973.1,1973.0,1.01427]
[1742496436593,2.37954,1973.1,1973.0,1.70214868]
[1742496436795,2.37954,1973.1,1973.0,3.03925843]
[1742496436999,2.37954,1973.1,1973.0,6.24706519]
[1742496437194,2.37954,1973.1,1973.0,5.55917]
[1742496437503,2.37954,1973.1,1973.0,6.24729177]
[1742496437795,2.37954,1973.1,1973.0,2.35137]
[1742496437993,2.37954,1973.1,1973.0,5.55917]
[1742496438192,2.37954,1973.1,1973.0,2.35137]
[1742496438795,2.37954,1973.1,1973.0,3.0397479]
[1742496438999,1.0142,1973.2,1973.1,1.01416]
[1742496439197,1.0142,1973.2,1973.1,1.65376]
[1742496439393,3.01646,1973.3,1973.2,1.01416]
[1742496439704,3.01646,1973.3,1973.2,2.40876]
[1742496440107,1.01416,1973.2,1973.1,1.01417]
[1742496440306,2.35586,1973.2,1973.1,0.68889854]
[1742496440509,1.01422,1973.1,1973.0,2.40882]
[1742496440711,2.35592,1973.1,1973.0,6.30560057]
[1742496442304,1.01421,1973.2,1973.1,1.01416]
[1742496442511,1.01421,1973.2,1973.1,3.74774057]
[1742496442706,2.42915,1973.3,1973.2,1.01416]
[1742496442910,2.42911,1973.3,1973.2,3.06534057]
[1742496443108,1.01407,1973.5,1973.4,1.01406]
[1742496443414,1.01407,1973.5,1973.4,1.70331794]
[1742496443415,2.42907,1973.5,1973.4,1.70331794]
[1742496443613,2.42907,1973.5,1973.4,1.70333173]
[1742496443813,2.42907,1973.5,1973.4,3.74793173]
[1742496445214,1.01401,1973.6,1973.5,1.01396]
[1742496445419,2.42141,1973.6,1973.5,3.07773173]
[1742496445914,1.3777,1973.8,1973.5,7.13381173]
[1742496446212,3.79897,1973.8,1973.7,1.01391]
[1742496446706,3.79897,1973.8,1973.7,3.05701]
[1742496447303,1.4074,1973.8,1973.7,3.05701]
[1742496447511,1.01374,1974.1,1974.0,1.01375]
[1742496447713,1.01378,1974.0,1973.9,4.22157]
[1742496447915,2.42118,1974.0,1973.9,3.07633446]
[1742496448409,1.4074,1974.0,1973.9,6.28370469]
[1742496448618,2.42115,1974.0,1973.9,6.28370469]
[1742496448810,2.42115,1974.0,1973.9,3.07594469]
[1742496449011,2.42115,1974.0,1973.9,2.38831]
[1742496450816,2.42115,1974.0,1973.9,3.07539147]
[1742496451020,2.42115,1974.0,1973.9,3.07538836]
[1742496451223,2.42115,1974.0,1973.9,1.3745]
[1742496451713,1.01386,1973.8,1973.7,4.22168]
[1742496452210,1.01386,1973.8,1973.7,5.51078]
[1742496452412,2.40626,1973.8,1973.7,5.51078]
[1742496453015,1.3924,1973.8,1973.7,5.51078]
[1742496453209,2.40626,1973.8,1973.7,5.51078]
[1742496453610,2.40626,1973.8,1973.7,2.30298]
[1742496453907,2.40626,1973.8,1973.7,1.2891]
[1742496454108,1.01396,1973.6,1973.5,7.83660186]
[1742496454305,1.01396,1973.6,1973.5,7.6374752]
[1742496454611,2.39754,1973.7,1973.6,1.01396]
[1742496454910,2.39754,1973.7,1973.6,3.11676875]
[1742496455117,1.3212,1973.9,1973.6,2.10280875]
[1742496455310,2.39749,1973.8,1973.7,2.42976]
[1742496457015,2.39749,1973.8,1973.7,1.4159]
[1742496457216,2.39749,1973.8,1973.7,2.42981]
[1742496458818,2.39749,1973.8,1973.7,1.4159]
[1742496459412,1.01396,1973.6,1973.5,5.53454186]
[1742496459613,1.01396,1973.6,1973.5,6.22150624]
[1742496460310,1.71576,1973.6,1973.5,3.21540186]
[1742496460512,1.71576,1973.6,1973.5,4.22941186]
[1742496460922,1.71576,1973.6,1973.5,3.21540186]
[1742496463120,3.11216,1973.6,1973.5,3.21540186]
[1742496463625,3.11216,1973.6,1973.5,4.22941186]
[1742496463825,3.11216,1973.6,1973.5,6.31841186]
[1742496464016,2.41036,1973.6,1973.5,6.31841186]
[1742496464519,0.6864,1973.8,1973.5,5.99287577]
[1742496464726,2.41028,1973.8,1973.7,1.01391]
[1742496465217,2.41028,1973.8,1973.7,2.43061]
[1742496465912,2.41028,1973.8,1973.7,3.11927989]
[1742496466517,1.01383,1973.9,1973.8,1.01386]
[1742496466719,1.01383,1973.9,1973.8,3.03336]
[1742496466918,1.01383,1973.9,1973.8,3.72199685]
[1742496467329,1.01383,1973.9,1973.8,3.72204378]
[1742496469531,1.01383,1973.9,1973.8,2.70818378]
[1742496469722,1.01383,1973.9,1973.8,3.72204378]
[1742496471426,1.01383,1973.9,1973.8,3.72248174]
[1742496472227,1.01383,1973.9,1973.8,3.72252949]
[1742496472821,2.31339,1974.0,1973.9,1.01381]
[1742496473026,2.31339,1974.0,1973.9,3.08887949]
[1742496475328,2.31339,1974.0,1973.9,3.08944482]
[1742496475728,1.2996,1974.0,1973.9,3.08944482]
[1742496475929,1.2996,1974.0,1973.9,6.29724482]
[1742496476119,2.31335,1974.0,1973.9,6.29724482]
[1742496476522,1.2996,1974.0,1973.9,6.29724482]
[1742496477229,1.2996,1974.0,1973.9,6.29694779]
[1742496478731,1.2996,1974.0,1973.9,3.08914779]
[1742496479127,1.2996,1974.0,1973.9,3.0891063]
[1742496479323,2.31335,1974.0,1973.9,0.6893963]
[1742496480827,2.31335,1974.0,1973.9,1.7032063]
[1742496481027,2.31335,1974.0,1973.9,0.6893963]
[1742496481634,2.31335,1974.0,1973.9,1.7032063]
[1742496482136,2.31335,1974.0,1973.9,0.6893963]
[1742496482528,1.01381,1973.9,1973.8,2.36722]
[1742496482727,3.00731,1973.9,1973.8,3.05755063]
[1742496483135,3.00731,1973.9,1973.8,2.04373063]
[1742496483337,6.32231,1973.9,1973.8,0.69033063]
[1742496483639,1.01396,1973.6,1973.5,0.00760186]
[1742496483839,4.32896,1973.6,1973.5,0.00760186]
[1742496484338,6.32246,1973.6,1973.5,0.00760186]
[1742496484733,6.32246,1973.6,1973.5,1.02161186]
[1742496485134,6.32246,1973.6,1973.5,0.00760186]
[1742496486335,6.32246,1973.6,1972.8,10.95281]
[1742496486336,7.8085,1973.6,1972.7,3.2078]
[1742496486631,1.01444,1972.8,1972.7,1.4176]
[1742496487533,2.33584,1972.8,1972.7,1.4176]
[1742496488443,2.33584,1972.8,1972.6,0.00760186]
[1742496488444,1.01442,1972.7,1972.6,0.00760186]
[1742496488634,5.50642,1972.7,1972.6,0.00760186]
[1742496488831,5.50642,1972.7,1972.6,1.86e-06]
[1742496489031,12.06435,1972.7,1972.0,3.2078]
[1742496489232,1.01473,1972.1,1972.0,3.2078]
[1742496489632,1.01473,1972.1,1972.0,4.4865]
[1742496490343,1.01478,1972.0,1971.9,1.33940186]
[1742496490637,2.29898,1972.0,1971.9,2.61810186]
[1742496490934,1.01477,1972.1,1972.0,1.01478]
[1742496491129,1.01477,1972.1,1972.0,1.4008]
[1742496491329,1.01477,1972.1,1972.0,2.41558]
[1742496492427,1.01477,1972.1,1972.0,1.4008]
[1742496492633,2.42967,1972.1,1972.0,1.4008]
[1742496493342,1.01472,1972.2,1972.1,1.01473]
[1742496493839,1.01473,1972.1,1972.0,2.41554]
[1742496496238,2.43291,1972.2,1972.0,2.41554]
[1742496496440,1.01473,1972.1,1972.0,2.41554]
[1742496496741,1.01465,1972.3,1972.2,1.01467]
[1742496497341,1.01465,1972.3,1972.2,2.36937]
[1742496497738,2.34395,1972.3,1972.2,2.36937]
[1742496499634,2.34395,1972.3,1972.2,1.3547]
[1742496500040,2.34395,1972.3,1972.2,2.36938]
[1742496500339,1.01455,1972.5,1972.4,1.01454]
[1742496500534,1.01458,1972.4,1972.3,1.69741]
[1742496500741,1.01456,1972.5,1972.4,1.01456]
[1742496500942,1.01456,1972.5,1972.4,2.37506]
[1742496502246,2.33612,1972.6,1972.5,1.01452]
[1742496502447,2.33612,1972.6,1972.5,2.37502]